Workbook

Sheet PipelinesTable
I3: Note: You may have to click and drag symbols around to suit your design. | Z3: Please feel free to manipulate the SS as required.
AU4: Table for manipulating Pit numbers and locations | BG4: Table for manipulating Pit numbers and locations
AU5: in chart 1. Examples below | BA5: mim IL | BB5: =MIN(AA10:AA29) -> 13.65 | BG5: in chart 2. Examples below | BM5: min IL | BN5: =MIN(AJ10:AJ29) -> 13.65 | BR5: Table to set the bounds | BY5: Table to set the bounds
B6: Pipeid | C6: us | D6: ds | E6: flow | F6: grade | G6: num | H6: dia | I6: capacity | J6: vel | K6: recth | L6: rectw | M6: SL | N6: cover | O6: length | P6: usil | Q6: dsil | R6: ponding | S6: grate | T6: pit | U6: depth | V6: funnel | X6: =CONCATENATE("LINE"," ",X8) -> LINE 1 | AG6: =CONCATENATE("LINE"," ",AG8) -> LINE 2 | AT6: =CONCATENATE("LINE"," ",$AU$8) -> LINE 1 | AU6: =CONCATENATE("LINE"," ",$AU$8) -> LINE 1 | AV6: cum | AW6: increment for | AX6: Pit Ht position | AY6: Dia | AZ6: Grade | BA6: mid | BB6: dia Ht position | BC6: Gde Ht position | BD6: Length ht | BF6: =CONCATENATE("LINE"," ",$BG$8) -> LINE 2 | BG6: =CONCATENATE("LINE"," ",$BG$8) -> LINE 2 | BH6: Cum | BI6: increment for | BJ6: PitHt position | BK6: Dia | BL6: Grade | BM6: mid | BN6: Dia Ht position | BO6: Gde Ht | BP6: Length | BR6: of the chart 1 | BY6: of the chart 2
B7: ID | C7: Pt | D7: Pt | E7: (L/s) | F7: 1:? | G7: Pipes | H7: Dia(mm) | I7: L/s | J7: Vel(m/s) | K7: Ht(mm) | L7: Width(mm) | M7: u/s(m) | N7: U/S (mm) | O7: (m) | P7: IL | Q7: IL | R7: Depth(mm) | S7: side(mm) | T7: size(mm) | U7: to u/s IL(mm) | V7: Length(mm) | X7: Points | Y7: length | Z7: sum lgths | AA7: IL | AB7: SL | AC7: grade | AD7: Dia | AG7: Points | AH7: length | AI7: sum lgths | AJ7: IL | AK7: SL | AL7: grade | AM7: Dia | AT7: length | AU7: Points | AV7: length | AW7: these formulas | AX7: on chart(m) | BA7: distance | BB7: on chart(m) | BC7: on chart(m) | BD7: on chart1 | BF7: length | BG7: Points | BH7: length | BI7: these formulas | BJ7: on chart(m) | BN7: on chart(m) | BO7: on chart | BP7: Height | BR7: AXIS | BS7: Y | BT7: X | BY7: AXIS | BZ7: Y | CA7: X
B8: Pipeid1 | C8: 1 | D8: GP1 | E8: 8.5 | F8: 10 | G8: 1 | H8: 100 | I8: 27.9 | J8: 1.1 | M8: 22 | N8: 300 | O8: 20 | P8: 21.6 | Q8: 19.6 | U8: 0.4 | V8: 160 | X8: 1 | Y8: 0 | Z8: 0 | AA8: =IF(X8="#N/A","",_xlfn.IFNA(VLOOKUP(X8,$C$8:$Q$53,14,FALSE),AA7)) -> 21.6 | AB8: =IF(X8="#N/A","",_xlfn.IFNA(VLOOKUP(X8,$C$8:$Q$46,11,FALSE), "")) -> 22 | AC8: =_xlfn.IFNA(VLOOKUP($X8,$C$8:$Q$46,4,FALSE), #N/A) -> 10 | AD8: =_xlfn.IFNA(VLOOKUP($X8,$C$8:$Q$46,6,FALSE), #N/A) -> 100 | AG8: 2 | AH8: 0 | AI8: 0 | AJ8: =IF(AG8="#N/A","",_xlfn.IFNA(VLOOKUP(AG8,$C$8:$Q$53,14,FALSE),AJ7)) -> 20.61 | AK8: =IF(AG8="#N/A","",_xlfn.IFNA(VLOOKUP(AG8,$C$8:$Q$46,11,FALSE), "")) -> 21 | AL8: =_xlfn.IFNA(VLOOKUP($AG8,$C$8:$Q$46,4,FALSE),#N/A) -> 25 | AM8: =_xlfn.IFNA(VLOOKUP($AG8,$C$8:$Q$46,6,FALSE), #N/A) -> 90 | AT8: =CONCATENATE("Length=",AV9-AV8,"m") -> Length=20m | AU8: =IF(OFFSET($X$8,AW8,0) = "",#N/A,OFFSET($X$8,AW8,0)) -> 1 | AV8: =IF(AU8 = AU7,#N/A,OFFSET($Z$8,AW8,0)) -> 0 | AW8: 0 | AX8: =BS9 -> 12.5 | AY8: =IF($AV8<>"",CONCATENATE("Dia","",OFFSET($AD$8,$AW8,0)),#N/A) -> Dia100 | AZ8: =IF($AY8<>"#N/A",CONCATENATE("1:",OFFSET($AC$8,$AW8,0)),"#N/A") -> 1:10 | BA8: =(AV9-AV8)/2 + AV8 -> 10 | BB8: =BB5-0.2 -> 13.45 | BC8: =BB8-0.3 -> 13.15 | BD8: =BC8-0.3 -> 12.85 | BF8: =CONCATENATE("Length=",BH9-BH8,"m") -> Length=25m | BG8: =IF(OFFSET($AG$8,BI8,0) = "",#N/A,OFFSET($AG$8,BI8,0)) -> 2 | BH8: =IF(OFFSET($AG$8,BI8,0) = "",#N/A,OFFSET(AI$8,BI8,0)) -> 0 | BI8: 0 | BJ8: =BZ9 -> 12.5 | BK8: =IF($BH8<>"",CONCATENATE("Dia"," ",OFFSET($AM$8,$BI8,0)),"#N/A") -> Dia 90 | BL8: =IF($BK8<>"",CONCATENATE("1:",OFFSET($AL$8,$BI8,0)),"") -> 1:25 | BM8: =(BH9-BH8)/2 + BH8 -> 12.5 | BN8: =BN5-0.2 -> 13.45 | BO8: =BN8-0.3 -> 13.15 | BP8: =BO8-0.3 -> 12.85 | BR8: Max | BS8: =ROUNDUP(MAX(AB8:AB29),0)+0.5 -> 22.5 | BT8: =MAX(IF(ISNUMBER($Z$8:$Z$29),($Z$8:$Z$29)))+5 -> 150 | BY8: Max | BZ8: =ROUNDUP(MAX(AK8:AK29),0)+0.5 -> 21.5 | CA8: =MAX(IF(ISNUMBER($BH$8:$BH$29),($BH$8:$BH$29)))+5 -> 155
B9: Pipeid2 | C9: 2 | D9: GP1 | E9: 3.26 | F9: 25 | G9: 1 | H9: 90 | I9: 12.92 | J9: 0.5 | M9: 21 | N9: 300 | O9: 25 | P9: 20.61 | Q9: 19.61 | U9: 0.39 | V9: 36 | X9: =IF(ISNA(VLOOKUP(X8,$C$8:$V$53,2,FALSE)),"#N/A",VLOOKUP(X8,$C$8:$V$53,2,FALSE)) -> GP1 | Y9: =IF(ISNA(VLOOKUP(X8,$C$8:$V$53,13,FALSE)),"",VLOOKUP(X8,$C$8:$V$53,13,FALSE)) -> 20 | Z9: =IF(AND(ISNUMBER(Y9)),Y9,0) -> 20 | AA9: =IF(ISNA(VLOOKUP(X8,$C$8:$Q$53,15,FALSE)), AA8, VLOOKUP(X8,$C$8:$Q$53,15,FALSE)) -> 19.6 | AB9: =IF(X9="#N/A","",_xlfn.IFNA(VLOOKUP(X9,$C$8:$Q$46,11,FALSE), $G$47)) -> 20 | AG9: =IF(ISNA(VLOOKUP(AG8,$C$8:$V$53,2,FALSE)),"#N/A",VLOOKUP(AG8,$C$8:$V$53,2,FALSE)) -> GP1 | AH9: =IF(ISNA(VLOOKUP(AG8,$C$8:$V$53,13,FALSE)),"",VLOOKUP(AG8,$C$8:$V$53,13,FALSE)) -> 25 | AI9: =IF(AND(ISNUMBER(AH9)),AH9,0) -> 25 | AJ9: =IF(ISNA(VLOOKUP(AG8,$C$8:$Q$53,15,FALSE)), AJ8, VLOOKUP(AG8,$C$8:$Q$53,15,FALSE)) -> 19.61 | AK9: =IF(AG9="#N/A","",_xlfn.IFNA(VLOOKUP(AG9,$C$8:$Q$46,11,FALSE), $G$47)) -> 20 | AT9: =CONCATENATE("Length=",AV10-AV9,"m") -> Length=30m | AU9: =IF(OFFSET($X$8,AW9,0) = "",#N/A,OFFSET($X$8,AW9,0)) -> GP1 | AV9: =IF(AU9 = AU8,#N/A,OFFSET($Z$8,AW9,0)) -> 20 | AW9: 1 | AX9: =AX8 -> 12.5 | AY9: =IF($AV9<>"",CONCATENATE("Dia","",OFFSET($AD$8,$AW9+1,0)),#N/A) -> Dia100 | AZ9: =IF($AY9<>"#N/A",CONCATENATE("1:",OFFSET($AC$8,$AW9+1,0)),"#N/A") -> 1:10 | BA9: =(AV10-AV9)/2 + AV9 -> 35 | BB9: =BB8 -> 13.45 | BC9: =BC8 -> 13.15 | BD9: =BD8 -> 12.85 | BF9: =CONCATENATE("Length=",BH10-BH9,"m") -> Length=30m | BG9: =IF(OFFSET($AG$8,BI9,0) = "",#N/A,OFFSET($AG$8,BI9,0)) -> GP1 | BH9: =IF(OFFSET($AG$8,BI9,0) = "",#N/A,OFFSET(AI$8,BI9,0)) -> 25 | BI9: 1 | BJ9: =BJ8 -> 12.5 | BK9: =IF($BH9<>"",CONCATENATE("Dia"," ",OFFSET($AM$8,$BI9+1,0)),#N/A) -> Dia 100 | BL9: =IF($BK9<>"",CONCATENATE("1:",OFFSET($AL$8,$BI9+1,0)),"") -> 1:10 | BM9: =(BH10-BH9)/2 + BH9 -> 40 | BN9: =BN8 -> 13.45 | BO9: =BO8 -> 13.15 | BP9: =BP8 -> 12.85 | BR9: Min | BS9: =FLOOR(MIN(AA8:AA29),0.5)-1 -> 12.5 | BT9: 0 | BY9: Min | BZ9: =FLOOR(MIN(AJ10:AJ29),0.5)-1 -> 12.5 | CA9: 0
B10: Pipeid3 | C10: GP1 | D10: GP2 | E10: 11.76 | F10: 10 | G10: 1 | H10: 100 | I10: 27.9 | J10: 1.5 | M10: 20 | N10: 300 | O10: 30 | P10: 19.58 | Q10: 16.58 | U10: 0.42 | X10: =IF($X9=$G$55,"#N/A",X9) -> GP1 | Y10: 0 | Z10: =IF(X10="#N/A",#N/A,Z9) -> 20 | AA10: =IF(X10="#N/A","",_xlfn.IFNA(VLOOKUP(X10,$C$8:$Q$53,14,FALSE),AA9)) -> 19.58 | AB10: =IF(X10="#N/A","",_xlfn.IFNA(VLOOKUP(X10,$C$8:$Q$46,11,FALSE), "")) -> 20 | AC10: =_xlfn.IFNA(VLOOKUP($X10,$C$8:$Q$46,4,FALSE), #N/A) -> 10 | AD10: =_xlfn.IFNA(VLOOKUP($X10,$C$8:$Q$46,6,FALSE), #N/A) -> 100 | AG10: =IF($AG9=$G$55,"#N/A",AG9) -> GP1 | AH10: 0 | AI10: =IF(AG10="#N/A",#N/A,AI9) -> 25 | AJ10: =IF(AG10="#N/A","",_xlfn.IFNA(VLOOKUP(AG10,$C$8:$Q$53,14,FALSE),AJ9)) -> 19.58 | AK10: =IF(AG10="#N/A","",_xlfn.IFNA(VLOOKUP(AG10,$C$8:$Q$46,11,FALSE), "")) -> 20 | AL10: =_xlfn.IFNA(VLOOKUP($AG10,$C$8:$Q$46,4,FALSE),#N/A) -> 10 | AM10: =_xlfn.IFNA(VLOOKUP($AG10,$C$8:$Q$46,6,FALSE), #N/A) -> 100 | AT10: Length=45m | AU10: GP2 | AV10: 50 | AW10: =AW9+2 -> 3 | AX10: =AX9 -> 12.5 | AY10: =IF($AV10<>"",CONCATENATE("Dia","",OFFSET($AD$8,$AW10+1,0)),#N/A) -> Dia150 | AZ10: =IF($AY10<>"#N/A",CONCATENATE("1:",OFFSET($AC$8,$AW10+1,0)),"#N/A") -> 1:45.92 | BA10: 72.5 | BB10: =BB9 -> 13.45 | BC10: 13.15 | BD10: =BD9 -> 12.85 | BF10: =CONCATENATE("Length=",BH11-BH10,"m") -> Length=45m | BG10: GP2 | BH10: =IF(OFFSET($AG$8,BI10,0) = "",#N/A,OFFSET(AI$8,BI10,0)) -> 55 | BI10: =BI9+2 -> 3 | BJ10: =BJ9 -> 12.5 | BK10: =IF($BH10<>"",CONCATENATE("Dia"," ",OFFSET($AM$8,$BI10+1,0)),#N/A) -> Dia 150 | BL10: =IF($BK10<>"",CONCATENATE("1:",OFFSET($AL$8,$BI10+1,0)),"") -> 1:45.92 | BM10: 77.5 | BN10: =BN9 -> 13.45 | BO10: 13.15 | BP10: 12.85 | BR10: tick | BS10: 0.5 | BT10: 10 | BY10: tick | BZ10: 0.5 | CA10: 10
B11: Pipeid4 | C11: 3 | D11: GP3 | E11: 10.25 | H11: NoPipe | R11: 300 | S11: 119_A | X11: =IF(ISNA(VLOOKUP(X10,$C$8:$V$53,2,FALSE)),"#N/A",VLOOKUP(X10,$C$8:$V$53,2,FALSE)) -> GP2 | Y11: =IF(ISNA(VLOOKUP(X10,$C$8:$V$53,13,FALSE)),"",VLOOKUP(X10,$C$8:$V$53,13,FALSE)) -> 30 | Z11: =IF(AND(ISNUMBER(Z9),ISNUMBER(Y11)),Z9+Y11,Z10) -> 50 | AA11: =IF(ISNA(VLOOKUP(X10,$C$8:$Q$53,15,FALSE)), AA10, VLOOKUP(X10,$C$8:$Q$53,15,FALSE)) -> 16.58 | AB11: =IF(X11="#N/A","",_xlfn.IFNA(VLOOKUP(X11,$C$8:$Q$46,11,FALSE), $G$47)) -> 17 | AG11: =IF(ISNA(VLOOKUP(AG10,$C$8:$V$53,2,FALSE)),"#N/A",VLOOKUP(AG10,$C$8:$V$53,2,FALSE)) -> GP2 | AH11: =IF(ISNA(VLOOKUP(AG10,$C$8:$V$53,13,FALSE)),"",VLOOKUP(AG10,$C$8:$V$53,13,FALSE)) -> 30 | AI11: =IF(AND(ISNUMBER(AI9),ISNUMBER(AH11)),AI9+AH11,AI10) -> 55 | AJ11: =IF(ISNA(VLOOKUP(AG10,$C$8:$Q$53,15,FALSE)), AJ10, VLOOKUP(AG10,$C$8:$Q$53,15,FALSE)) -> 16.58 | AK11: =IF(AG11="#N/A","",_xlfn.IFNA(VLOOKUP(AG11,$C$8:$Q$46,11,FALSE), $G$47)) -> 17 | AT11: Length=50m | AU11: C | AV11: 95 | AW11: =AW10+2 -> 5 | AX11: 12.5 | AY11: =IF($AV11<>"",CONCATENATE("Dia","",OFFSET($AD$8,$AW11+1,0)),#N/A) -> Dia300 | AZ11: 1:250 | BA11: 120 | BB11: 13.45 | BC11: 13.15 | BD11: =BD10 -> 12.85 | BF11: Length=50m | BG11: =IF(OFFSET($AG$8,BI11,0) = "",#N/A,OFFSET($AG$8,BI11,0)) -> C | BH11: 100 | BI11: =BI10+2 -> 5 | BJ11: 12.5 | BK11: Dia 300 | BL11: 1:250 | BM11: 125 | BN11: =BN10 -> 13.45 | BO11: 13.15 | BP11: 12.85
B12: Pipeid5 | C12: GP3 | D12: GP2 | E12: 10.25 | F12: 17.5 | G12: 1 | H12: 100 | I12: 20.69 | J12: 1.3 | M12: 19 | N12: 300 | O12: 35 | P12: 18.6 | Q12: 16.6 | T12: 350x350 | U12: 0.4 | X12: =IF($X11=$G$55,"#N/A",X11) -> GP2 | Y12: 0 | Z12: =IF(X12="#N/A",#N/A,Z11) -> 50 | AA12: =IF(X12="#N/A","",_xlfn.IFNA(VLOOKUP(X12,$C$8:$Q$53,14,FALSE),AA11)) -> 16.53 | AB12: =IF(X12="#N/A","",_xlfn.IFNA(VLOOKUP(X12,$C$8:$Q$46,11,FALSE), "")) -> 17 | AC12: =_xlfn.IFNA(VLOOKUP($X12,$C$8:$Q$46,4,FALSE), #N/A) -> 45.92 | AD12: =_xlfn.IFNA(VLOOKUP($X12,$C$8:$Q$46,6,FALSE), #N/A) -> 150 | AG12: =IF($AG11=$G$55,"#N/A",AG11) -> GP2 | AH12: 0 | AI12: =IF(AG12="#N/A",#N/A,AI11) -> 55 | AJ12: =IF(AG12="#N/A","",_xlfn.IFNA(VLOOKUP(AG12,$C$8:$Q$53,14,FALSE),AJ11)) -> 16.53 | AK12: =IF(AG12="#N/A","",_xlfn.IFNA(VLOOKUP(AG12,$C$8:$Q$46,11,FALSE), "")) -> 17 | AL12: =_xlfn.IFNA(VLOOKUP($AG12,$C$8:$Q$46,4,FALSE),#N/A) -> 45.92 | AM12: =_xlfn.IFNA(VLOOKUP($AG12,$C$8:$Q$46,6,FALSE), #N/A) -> 150 | AU12: D | AV12: 145 | AW12: 7 | AX12: 12.5 | BB12: 13.45 | BC12: 13.15 | BD12: =BD11 -> 12.85 | BG12: =IF(OFFSET($AG$8,BI12,0) = "",#N/A,OFFSET($AG$8,BI12,0)) -> D | BH12: 150 | BI12: 7 | BJ12: 12.5 | BK12: =IF($BH12<>"",CONCATENATE("Dia"," ",OFFSET($AM$8,$BI12+1,0)),#N/A) ->  | BN12: =BN11 -> 13.45 | BO12: 13.15 | BP12: 12.85
B13: Pipeid6 | C13: 4 | D13: GP4 | E13: 11.39 | H13: NoPipe | R13: 300 | S13: 126_A | X13: =IF(ISNA(VLOOKUP(X12,$C$8:$V$53,2,FALSE)),"#N/A",VLOOKUP(X12,$C$8:$V$53,2,FALSE)) -> C | Y13: =IF(ISNA(VLOOKUP(X12,$C$8:$V$53,13,FALSE)),"",VLOOKUP(X12,$C$8:$V$53,13,FALSE)) -> 45 | Z13: =IF(AND(ISNUMBER(Z11),ISNUMBER(Y13)),Z11+Y13,Z12) -> 95 | AA13: =IF(ISNA(VLOOKUP(X12,$C$8:$Q$53,15,FALSE)), AA12, VLOOKUP(X12,$C$8:$Q$53,15,FALSE)) -> 15.55 | AB13: =IF(X13="#N/A","",_xlfn.IFNA(VLOOKUP(X13,$C$8:$Q$46,11,FALSE), $G$47)) -> 16 | AG13: =IF(ISNA(VLOOKUP(AG12,$C$8:$V$53,2,FALSE)),"#N/A",VLOOKUP(AG12,$C$8:$V$53,2,FALSE)) -> C | AH13: =IF(ISNA(VLOOKUP(AG12,$C$8:$V$53,13,FALSE)),"",VLOOKUP(AG12,$C$8:$V$53,13,FALSE)) -> 45 | AI13: =IF(AND(ISNUMBER(AI11),ISNUMBER(AH13)),AI11+AH13,AI12) -> 100 | AJ13: =IF(ISNA(VLOOKUP(AG12,$C$8:$Q$53,15,FALSE)), AJ12, VLOOKUP(AG12,$C$8:$Q$53,15,FALSE)) -> 15.55 | AK13: =IF(AG13="#N/A","",_xlfn.IFNA(VLOOKUP(AG13,$C$8:$Q$46,11,FALSE), $G$47)) -> 16 | AU13: =IF(OFFSET($X$8,AW13,0) = "",#N/A,OFFSET($X$8,AW13,0)) -> #N/A | AW13: 9 | AX13: 12.5 | BB13: 13.45 | BC13: 13.15 | BD13: =BD12 -> 12.85 | BG13: =IF(OFFSET($AG$8,BI13,0) = "",#N/A,OFFSET($AG$8,BI13,0)) -> #N/A | BI13: 9 | BJ13: 12.5 | BN13: =BN12 -> 13.45 | BO13: 13.15 | BP13: 12.85
B14: Pipeid7 | C14: 5 | D14: C | E14: 50 | F14: 20 | G14: 1 | H14: 225 | I14: 163.52 | J14: 1.3 | M14: 18 | N14: 300 | O14: 40 | P14: 17.475 | Q14: 15.475 | U14: 0.525 | X14: =IF($X13=$G$55,"#N/A",X13) -> C | Y14: 0 | Z14: =IF(X14="#N/A",#N/A,Z13) -> 95 | AA14: =IF(X14="#N/A","",_xlfn.IFNA(VLOOKUP(X14,$C$8:$Q$53,14,FALSE),AA13)) -> 13.85 | AB14: =IF(X14="#N/A","",_xlfn.IFNA(VLOOKUP(X14,$C$8:$Q$46,11,FALSE), "")) -> 16 | AC14: =_xlfn.IFNA(VLOOKUP($X14,$C$8:$Q$46,4,FALSE), #N/A) -> 250 | AD14: =_xlfn.IFNA(VLOOKUP($X14,$C$8:$Q$46,6,FALSE), #N/A) -> 300 | AG14: =IF($AG13=$G$55,"#N/A",AG13) -> C | AH14: 0 | AI14: =IF(AG14="#N/A",#N/A,AI13) -> 100 | AJ14: =IF(AG14="#N/A","",_xlfn.IFNA(VLOOKUP(AG14,$C$8:$Q$53,14,FALSE),AJ13)) -> 13.85 | AK14: =IF(AG14="#N/A","",_xlfn.IFNA(VLOOKUP(AG14,$C$8:$Q$46,11,FALSE), "")) -> 16 | AL14: =_xlfn.IFNA(VLOOKUP($AG14,$C$8:$Q$46,4,FALSE),#N/A) -> 250 | AM14: =_xlfn.IFNA(VLOOKUP($AG14,$C$8:$Q$46,6,FALSE), #N/A) -> 300 | AU14: #N/A | AV14: =IF(AU14 = AU13,#N/A,OFFSET($Z$8,AW14,0)) ->  | AW14: 11 | AX14: 12.5 | BB14: 13.45 | BC14: 13.15 | BD14: =BD13 -> 12.85 | BG14: =IF(OFFSET($AG$8,BI14,0) = "",#N/A,OFFSET($AG$8,BI14,0)) -> #N/A | BI14: 11 | BJ14: 12.5 | BN14: =BN13 -> 13.45 | BO14: 13.15 | BP14: 12.85
B15: Pipeid8 | C15: GP2 | D15: C | E15: 22.01 | F15: 45.92 | G15: 1 | H15: 150 | I15: 36.04 | J15: 1.2 | M15: 17 | N15: 300 | O15: 45 | P15: 16.53 | Q15: 15.55 | U15: 0.47 | X15: =IF(ISNA(VLOOKUP(X14,$C$8:$V$53,2,FALSE)),"#N/A",VLOOKUP(X14,$C$8:$V$53,2,FALSE)) -> D | Y15: =IF(ISNA(VLOOKUP(X14,$C$8:$V$53,13,FALSE)),"",VLOOKUP(X14,$C$8:$V$53,13,FALSE)) -> 50 | Z15: =IF(AND(ISNUMBER(Z13),ISNUMBER(Y15)),Z13+Y15,Z14) -> 145 | AA15: =IF(ISNA(VLOOKUP(X14,$C$8:$Q$53,15,FALSE)), AA14, VLOOKUP(X14,$C$8:$Q$53,15,FALSE)) -> 13.65 | AB15: =IF(X15="#N/A","",_xlfn.IFNA(VLOOKUP(X15,$C$8:$Q$46,11,FALSE), $G$47)) -> 14 | AG15: =IF(ISNA(VLOOKUP(AG14,$C$8:$V$53,2,FALSE)),"#N/A",VLOOKUP(AG14,$C$8:$V$53,2,FALSE)) -> D | AH15: =IF(ISNA(VLOOKUP(AG14,$C$8:$V$53,13,FALSE)),"",VLOOKUP(AG14,$C$8:$V$53,13,FALSE)) -> 50 | AI15: =IF(AND(ISNUMBER(AI13),ISNUMBER(AH15)),AI13+AH15,AI14) -> 150 | AJ15: =IF(ISNA(VLOOKUP(AG14,$C$8:$Q$53,15,FALSE)), AJ14, VLOOKUP(AG14,$C$8:$Q$53,15,FALSE)) -> 13.65 | AK15: =IF(AG15="#N/A","",_xlfn.IFNA(VLOOKUP(AG15,$C$8:$Q$46,11,FALSE), $G$47)) -> 14 | AU15: #N/A | AV15: =IF(AU15 = AU14,#N/A,OFFSET($Z$8,AW15,0)) ->  | AW15: 13 | AX15: 12.5 | BB15: 13.45 | BC15: 13.15 | BD15: =BD14 -> 12.85 | BG15: #N/A | BI15: 13 | BJ15: 12.5 | BN15: =BN14 -> 13.45 | BO15: 13.15 | BP15: 12.85
B16: Pipeid9 | C16: C | D16: D | E16: 83.4 | F16: 250 | G16: 1 | H16: 300 | I16: 90.32 | J16: 1.2 | M16: 16 | N16: 300 | O16: 50 | P16: 13.85 | Q16: 13.65 | U16: 2.15 | X16: =IF($X15=$G$55,"#N/A",X15) -> #N/A | Y16: 0 | Z16: =IF(X16="#N/A",#N/A,Z15) ->  | AA16: =IF(X16="#N/A","",_xlfn.IFNA(VLOOKUP(X16,$C$8:$Q$53,14,FALSE),AA15)) ->  | AB16: =IF(X16="#N/A","",_xlfn.IFNA(VLOOKUP(X16,$C$8:$Q$46,11,FALSE), "")) ->  | AC16: =_xlfn.IFNA(VLOOKUP($X16,$C$8:$Q$46,4,FALSE), #N/A) ->  | AD16: =_xlfn.IFNA(VLOOKUP($X16,$C$8:$Q$46,6,FALSE), #N/A) ->  | AG16: =IF($AG15=$G$55,"#N/A",AG15) -> #N/A | AH16: 0 | AI16: =IF(AG16="#N/A",#N/A,AI15) ->  | AJ16: =IF(AG16="#N/A","",_xlfn.IFNA(VLOOKUP(AG16,$C$8:$Q$53,14,FALSE),AJ15)) ->  | AK16: =IF(AG16="#N/A","",_xlfn.IFNA(VLOOKUP(AG16,$C$8:$Q$46,11,FALSE), "")) ->  | AL16: =_xlfn.IFNA(VLOOKUP($AG16,$C$8:$Q$46,4,FALSE),#N/A) ->  | AM16: =_xlfn.IFNA(VLOOKUP($AG16,$C$8:$Q$46,6,FALSE), #N/A) ->  | AU16: #N/A | AW16: 15 | AX16: 12.5 | BB16: 13.45 | BC16: 13.15 | BD16: =BD15 -> 12.85 | BG16: #N/A | BI16: 15 | BJ16: 12.5 | BN16: =BN15 -> 13.45 | BO16: 13.15 | BP16: 12.85
B17: Pipeid10 | C17: GP4 | D17: C | E17: 11.39 | F17: 100 | G17: 1 | H17: 150 | I17: 23.65 | J17: 0.6 | M17: 15 | N17: 300 | O17: 55 | P17: 14.55 | Q17: 14 | T17: 350x350 | U17: 0.45 | X17: =IF(ISNA(VLOOKUP(X16,$C$8:$V$53,2,FALSE)),"#N/A",VLOOKUP(X16,$C$8:$V$53,2,FALSE)) -> #N/A | Y17: =IF(ISNA(VLOOKUP(X16,$C$8:$V$53,13,FALSE)),"",VLOOKUP(X16,$C$8:$V$53,13,FALSE)) ->  | Z17: =IF(AND(ISNUMBER(Z15),ISNUMBER(Y17)),Z15+Y17,Z16) ->  | AA17: =IF(ISNA(VLOOKUP(X16,$C$8:$Q$53,15,FALSE)), AA16, VLOOKUP(X16,$C$8:$Q$53,15,FALSE)) ->  | AB17: =IF(X17="#N/A","",_xlfn.IFNA(VLOOKUP(X17,$C$8:$Q$46,11,FALSE), $G$47)) ->  | AG17: =IF(ISNA(VLOOKUP(AG16,$C$8:$V$53,2,FALSE)),"#N/A",VLOOKUP(AG16,$C$8:$V$53,2,FALSE)) -> #N/A | AH17: =IF(ISNA(VLOOKUP(AG16,$C$8:$V$53,13,FALSE)),"",VLOOKUP(AG16,$C$8:$V$53,13,FALSE)) ->  | AI17: =IF(AND(ISNUMBER(AI15),ISNUMBER(AH17)),AI15+AH17,AI16) ->  | AJ17: =IF(ISNA(VLOOKUP(AG16,$C$8:$Q$53,15,FALSE)), AJ16, VLOOKUP(AG16,$C$8:$Q$53,15,FALSE)) ->  | AK17: =IF(AG17="#N/A","",_xlfn.IFNA(VLOOKUP(AG17,$C$8:$Q$46,11,FALSE), $G$47)) ->  | AU17: #N/A | AW17: 17 | AX17: 12.5 | BB17: 13.45 | BC17: 13.15 | BD17: =BD16 -> 12.85 | BG17: #N/A | BI17: 17 | BJ17: 12.5 | BN17: =BN16 -> 13.45 | BO17: 13.15 | BP17: 12.85
B18: Pipeid11 | X18: =IF($X17=$G$55,"#N/A",X17) -> #N/A | Y18: 0 | Z18: =IF(X18="#N/A",#N/A,Z17) ->  | AA18: =IF(X18="#N/A","",_xlfn.IFNA(VLOOKUP(X18,$C$8:$Q$53,14,FALSE),AA17)) ->  | AB18: =IF(X18="#N/A","",_xlfn.IFNA(VLOOKUP(X18,$C$8:$Q$46,11,FALSE), "")) ->  | AC18: =_xlfn.IFNA(VLOOKUP($X18,$C$8:$Q$46,4,FALSE), #N/A) ->  | AD18: =_xlfn.IFNA(VLOOKUP($X18,$C$8:$Q$46,6,FALSE), #N/A) ->  | AG18: =IF($AG17=$G$55,"#N/A",AG17) -> #N/A | AH18: 0 | AI18: =IF(AG18="#N/A",#N/A,AI17) ->  | AJ18: =IF(AG18="#N/A","",_xlfn.IFNA(VLOOKUP(AG18,$C$8:$Q$53,14,FALSE),AJ17)) ->  | AK18: =IF(AG18="#N/A","",_xlfn.IFNA(VLOOKUP(AG18,$C$8:$Q$46,11,FALSE), "")) ->  | AL18: =_xlfn.IFNA(VLOOKUP($AG18,$C$8:$Q$46,4,FALSE),#N/A) ->  | AM18: =_xlfn.IFNA(VLOOKUP($AG18,$C$8:$Q$46,6,FALSE), #N/A) ->  | AU18: #N/A | AW18: 19 | AX18: 12.5 | BB18: 13.45 | BC18: 13.15 | BD18: =BD17 -> 12.85 | BG18: #N/A | BI18: 19 | BJ18: 12.5 | BN18: =BN17 -> 13.45 | BO18: 13.15 | BP18: 12.85
B19: Pipeid12 | X19: =IF(ISNA(VLOOKUP(X18,$C$8:$V$53,2,FALSE)),"#N/A",VLOOKUP(X18,$C$8:$V$53,2,FALSE)) -> #N/A | Y19: =IF(ISNA(VLOOKUP(X18,$C$8:$V$53,13,FALSE)),"",VLOOKUP(X18,$C$8:$V$53,13,FALSE)) ->  | Z19: =IF(AND(ISNUMBER(Z17),ISNUMBER(Y19)),Z17+Y19,Z18) ->  | AA19: =IF(ISNA(VLOOKUP(X18,$C$8:$Q$53,15,FALSE)), AA18, VLOOKUP(X18,$C$8:$Q$53,15,FALSE)) ->  | AB19: =IF(X19="#N/A","",_xlfn.IFNA(VLOOKUP(X19,$C$8:$Q$46,11,FALSE), $G$47)) ->  | AG19: =IF(ISNA(VLOOKUP(AG18,$C$8:$V$53,2,FALSE)),"#N/A",VLOOKUP(AG18,$C$8:$V$53,2,FALSE)) -> #N/A | AH19: =IF(ISNA(VLOOKUP(AG18,$C$8:$V$53,13,FALSE)),"",VLOOKUP(AG18,$C$8:$V$53,13,FALSE)) ->  | AI19: =IF(AND(ISNUMBER(AI17),ISNUMBER(AH19)),AI17+AH19,AI18) ->  | AJ19: =IF(ISNA(VLOOKUP(AG18,$C$8:$Q$53,15,FALSE)), AJ18, VLOOKUP(AG18,$C$8:$Q$53,15,FALSE)) ->  | AK19: =IF(AG19="#N/A","",_xlfn.IFNA(VLOOKUP(AG19,$C$8:$Q$46,11,FALSE), $G$47)) ->  | AU19: #N/A | AW19: 21 | AX19: 12.5 | BB19: 13.45 | BC19: 13.15 | BD19: =BD18 -> 12.85 | BG19: #N/A | BI19: 21 | BJ19: 12.5 | BN19: =BN18 -> 13.45 | BO19: 13.15 | BP19: 12.85
B20: Pipeid13 | X20: =IF($X19=$G$55,"#N/A",X19) -> #N/A | Y20: 0 | Z20: =IF(X20="#N/A",#N/A,Z19) ->  | AA20: =IF(X20="#N/A","",_xlfn.IFNA(VLOOKUP(X20,$C$8:$Q$53,14,FALSE),AA19)) ->  | AB20: =IF(X20="#N/A","",_xlfn.IFNA(VLOOKUP(X20,$C$8:$Q$46,11,FALSE), "")) ->  | AC20: =_xlfn.IFNA(VLOOKUP($X20,$C$8:$Q$46,4,FALSE), #N/A) ->  | AD20: =_xlfn.IFNA(VLOOKUP($X20,$C$8:$Q$46,6,FALSE), #N/A) ->  | AG20: =IF($AG19=$G$55,"#N/A",AG19) -> #N/A | AH20: 0 | AI20: =IF(AG20="#N/A",#N/A,AI19) ->  | AJ20: =IF(AG20="#N/A","",_xlfn.IFNA(VLOOKUP(AG20,$C$8:$Q$53,14,FALSE),AJ19)) ->  | AK20: =IF(AG20="#N/A","",_xlfn.IFNA(VLOOKUP(AG20,$C$8:$Q$46,11,FALSE), "")) ->  | AL20: =_xlfn.IFNA(VLOOKUP($AG20,$C$8:$Q$46,4,FALSE),#N/A) ->  | AM20: =_xlfn.IFNA(VLOOKUP($AG20,$C$8:$Q$46,6,FALSE), #N/A) ->  | AW20: 23 | AX20: 12.5 | BB20: 13.45 | BC20: 13.15 | BD20: =BD19 -> 12.85 | BI20: 23 | BJ20: 12.5 | BN20: =BN19 -> 13.45 | BO20: 13.15 | BP20: 12.85
B21: Pipeid14 | X21: =IF(ISNA(VLOOKUP(X20,$C$8:$V$53,2,FALSE)),"#N/A",VLOOKUP(X20,$C$8:$V$53,2,FALSE)) -> #N/A | Y21: =IF(ISNA(VLOOKUP(X20,$C$8:$V$53,13,FALSE)),"",VLOOKUP(X20,$C$8:$V$53,13,FALSE)) ->  | Z21: =IF(AND(ISNUMBER(Z19),ISNUMBER(Y21)),Z19+Y21,Z20) ->  | AA21: =IF(ISNA(VLOOKUP(X20,$C$8:$Q$53,15,FALSE)), AA20, VLOOKUP(X20,$C$8:$Q$53,15,FALSE)) ->  | AB21: =IF(X21="#N/A","",_xlfn.IFNA(VLOOKUP(X21,$C$8:$Q$46,11,FALSE), $G$47)) ->  | AG21: =IF(ISNA(VLOOKUP(AG20,$C$8:$V$53,2,FALSE)),"#N/A",VLOOKUP(AG20,$C$8:$V$53,2,FALSE)) -> #N/A | AH21: =IF(ISNA(VLOOKUP(AG20,$C$8:$V$53,13,FALSE)),"",VLOOKUP(AG20,$C$8:$V$53,13,FALSE)) ->  | AI21: =IF(AND(ISNUMBER(AI19),ISNUMBER(AH21)),AI19+AH21,AI20) ->  | AJ21: =IF(ISNA(VLOOKUP(AG20,$C$8:$Q$53,15,FALSE)), AJ20, VLOOKUP(AG20,$C$8:$Q$53,15,FALSE)) ->  | AK21: =IF(AG21="#N/A","",_xlfn.IFNA(VLOOKUP(AG21,$C$8:$Q$46,11,FALSE), $G$47)) ->  | AW21: 25 | AX21: 12.5 | BB21: 13.45 | BC21: 13.15 | BD21: =BD20 -> 12.85 | BI21: 25 | BJ21: 12.5 | BN21: =BN20 -> 13.45 | BO21: 13.15 | BP21: 12.85
B22: Pipeid15 | X22: =IF($X21=$G$55,"#N/A",X21) -> #N/A | Y22: 0 | Z22: =IF(X22="#N/A",#N/A,Z21) ->  | AA22: =IF(X22="#N/A","",_xlfn.IFNA(VLOOKUP(X22,$C$8:$Q$53,14,FALSE),AA21)) ->  | AB22: =IF(X22="#N/A","",_xlfn.IFNA(VLOOKUP(X22,$C$8:$Q$46,11,FALSE), "")) ->  | AC22: =_xlfn.IFNA(VLOOKUP($X22,$C$8:$Q$46,4,FALSE), #N/A) ->  | AD22: =_xlfn.IFNA(VLOOKUP($X22,$C$8:$Q$46,6,FALSE), #N/A) ->  | AG22: =IF($AG21=$G$55,"#N/A",AG21) -> #N/A | AH22: 0 | AI22: =IF(AG22="#N/A",#N/A,AI21) ->  | AJ22: =IF(AG22="#N/A","",_xlfn.IFNA(VLOOKUP(AG22,$C$8:$Q$53,14,FALSE),AJ21)) ->  | AK22: =IF(AG22="#N/A","",_xlfn.IFNA(VLOOKUP(AG22,$C$8:$Q$46,11,FALSE), "")) ->  | AL22: =_xlfn.IFNA(VLOOKUP($AG22,$C$8:$Q$46,4,FALSE),#N/A) ->  | AM22: =_xlfn.IFNA(VLOOKUP($AG22,$C$8:$Q$46,6,FALSE), #N/A) ->  | AW22: 27 | AX22: 12.5 | BB22: 13.45 | BC22: 13.15 | BD22: =BD21 -> 12.85 | BI22: 27 | BJ22: 12.5 | BN22: =BN21 -> 13.45 | BO22: 13.15 | BP22: 12.85
B23: Pipeid16 | X23: =IF(ISNA(VLOOKUP(X22,$C$8:$V$53,2,FALSE)),"#N/A",VLOOKUP(X22,$C$8:$V$53,2,FALSE)) -> #N/A | Y23: =IF(ISNA(VLOOKUP(X22,$C$8:$V$53,13,FALSE)),"",VLOOKUP(X22,$C$8:$V$53,13,FALSE)) ->  | Z23: =IF(AND(ISNUMBER(Z21),ISNUMBER(Y23)),Z21+Y23,Z22) ->  | AA23: =IF(ISNA(VLOOKUP(X22,$C$8:$Q$53,15,FALSE)), AA22, VLOOKUP(X22,$C$8:$Q$53,15,FALSE)) ->  | AB23: =IF(X23="#N/A","",_xlfn.IFNA(VLOOKUP(X23,$C$8:$Q$46,11,FALSE), $G$47)) ->  | AG23: =IF(ISNA(VLOOKUP(AG22,$C$8:$V$53,2,FALSE)),"#N/A",VLOOKUP(AG22,$C$8:$V$53,2,FALSE)) -> #N/A | AH23: =IF(ISNA(VLOOKUP(AG22,$C$8:$V$53,13,FALSE)),"",VLOOKUP(AG22,$C$8:$V$53,13,FALSE)) ->  | AI23: =IF(AND(ISNUMBER(AI21),ISNUMBER(AH23)),AI21+AH23,AI22) ->  | AJ23: =IF(ISNA(VLOOKUP(AG22,$C$8:$Q$53,15,FALSE)), AJ22, VLOOKUP(AG22,$C$8:$Q$53,15,FALSE)) ->  | AK23: =IF(AG23="#N/A","",_xlfn.IFNA(VLOOKUP(AG23,$C$8:$Q$46,11,FALSE), $G$47)) ->  | AW23: 29 | AX23: 12.5 | BB23: 13.45 | BC23: 13.15 | BD23: =BD22 -> 12.85 | BI23: 29 | BJ23: 12.5 | BN23: =BN22 -> 13.45 | BO23: 13.15 | BP23: 12.85
B24: Pipeid17 | X24: =IF($X23=$G$55,"#N/A",X23) -> #N/A | Y24: 0 | Z24: =IF(X24="#N/A",#N/A,Z23) ->  | AA24: =IF(X24="#N/A","",_xlfn.IFNA(VLOOKUP(X24,$C$8:$Q$53,14,FALSE),AA23)) ->  | AB24: =IF(X24="#N/A","",_xlfn.IFNA(VLOOKUP(X24,$C$8:$Q$46,11,FALSE), "")) ->  | AC24: =_xlfn.IFNA(VLOOKUP($X24,$C$8:$Q$46,4,FALSE), #N/A) ->  | AD24: =_xlfn.IFNA(VLOOKUP($X24,$C$8:$Q$46,6,FALSE), #N/A) ->  | AG24: =IF($AG23=$G$55,"#N/A",AG23) -> #N/A | AH24: 0 | AI24: =IF(AG24="#N/A",#N/A,AI23) ->  | AJ24: =IF(AG24="#N/A","",_xlfn.IFNA(VLOOKUP(AG24,$C$8:$Q$53,14,FALSE),AJ23)) ->  | AK24: =IF(AG24="#N/A","",_xlfn.IFNA(VLOOKUP(AG24,$C$8:$Q$46,11,FALSE), "")) ->  | AL24: =_xlfn.IFNA(VLOOKUP($AG24,$C$8:$Q$46,4,FALSE),#N/A) ->  | AM24: =_xlfn.IFNA(VLOOKUP($AG24,$C$8:$Q$46,6,FALSE), #N/A) ->  | AW24: 31 | AX24: 12.5 | BB24: 13.45 | BC24: 13.15 | BD24: =BD23 -> 12.85 | BI24: 31 | BJ24: 12.5 | BN24: =BN23 -> 13.45 | BO24: 13.15 | BP24: 12.85
B25: Pipeid18 | X25: =IF(ISNA(VLOOKUP(X24,$C$8:$V$53,2,FALSE)),"#N/A",VLOOKUP(X24,$C$8:$V$53,2,FALSE)) -> #N/A | Y25: =IF(ISNA(VLOOKUP(X24,$C$8:$V$53,13,FALSE)),"",VLOOKUP(X24,$C$8:$V$53,13,FALSE)) ->  | Z25: =IF(AND(ISNUMBER(Z23),ISNUMBER(Y25)),Z23+Y25,Z24) ->  | AA25: =IF(ISNA(VLOOKUP(X24,$C$8:$Q$53,15,FALSE)), AA24, VLOOKUP(X24,$C$8:$Q$53,15,FALSE)) ->  | AB25: =IF(X25="#N/A","",_xlfn.IFNA(VLOOKUP(X25,$C$8:$Q$46,11,FALSE), $G$47)) ->  | AG25: =IF(ISNA(VLOOKUP(AG24,$C$8:$V$53,2,FALSE)),"#N/A",VLOOKUP(AG24,$C$8:$V$53,2,FALSE)) -> #N/A | AH25: =IF(ISNA(VLOOKUP(AG24,$C$8:$V$53,13,FALSE)),"",VLOOKUP(AG24,$C$8:$V$53,13,FALSE)) ->  | AI25: =IF(AND(ISNUMBER(AI23),ISNUMBER(AH25)),AI23+AH25,AI24) ->  | AJ25: =IF(ISNA(VLOOKUP(AG24,$C$8:$Q$53,15,FALSE)), AJ24, VLOOKUP(AG24,$C$8:$Q$53,15,FALSE)) ->  | AK25: =IF(AG25="#N/A","",_xlfn.IFNA(VLOOKUP(AG25,$C$8:$Q$46,11,FALSE), $G$47)) ->  | AW25: 33 | AX25: 12.5 | BB25: 13.45 | BC25: 13.15 | BD25: =BD24 -> 12.85 | BI25: 33 | BJ25: 12.5 | BN25: =BN24 -> 13.45 | BO25: 13.15 | BP25: 12.85
B26: Pipeid19 | X26: =IF($X25=$G$55,"#N/A",X25) -> #N/A | Y26: 0 | Z26: =IF(X26="#N/A",#N/A,Z25) ->  | AA26: =IF(X26="#N/A","",_xlfn.IFNA(VLOOKUP(X26,$C$8:$Q$53,14,FALSE),AA25)) ->  | AB26: =IF(X26="#N/A","",_xlfn.IFNA(VLOOKUP(X26,$C$8:$Q$46,11,FALSE), "")) ->  | AC26: =_xlfn.IFNA(VLOOKUP($X26,$C$8:$Q$46,4,FALSE), #N/A) ->  | AD26: =_xlfn.IFNA(VLOOKUP($X26,$C$8:$Q$46,6,FALSE), #N/A) ->  | AG26: =IF($AG25=$G$55,"#N/A",AG25) -> #N/A | AH26: 0 | AI26: =IF(AG26="#N/A",#N/A,AI25) ->  | AJ26: =IF(AG26="#N/A","",_xlfn.IFNA(VLOOKUP(AG26,$C$8:$Q$53,14,FALSE),AJ25)) ->  | AK26: =IF(AG26="#N/A","",_xlfn.IFNA(VLOOKUP(AG26,$C$8:$Q$46,11,FALSE), "")) ->  | AL26: =_xlfn.IFNA(VLOOKUP($AG26,$C$8:$Q$46,4,FALSE),#N/A) ->  | AM26: =_xlfn.IFNA(VLOOKUP($AG26,$C$8:$Q$46,6,FALSE), #N/A) ->  | AW26: 35 | AX26: 12.5 | BB26: 13.45 | BC26: 13.15 | BD26: =BD25 -> 12.85 | BI26: 35 | BJ26: 12.5 | BN26: =BN25 -> 13.45 | BO26: 13.15 | BP26: 12.85
B27: Pipeid20 | X27: =IF(ISNA(VLOOKUP(X26,$C$8:$V$53,2,FALSE)),"#N/A",VLOOKUP(X26,$C$8:$V$53,2,FALSE)) -> #N/A | Y27: =IF(ISNA(VLOOKUP(X26,$C$8:$V$53,13,FALSE)),"",VLOOKUP(X26,$C$8:$V$53,13,FALSE)) ->  | Z27: =IF(AND(ISNUMBER(Z25),ISNUMBER(Y27)),Z25+Y27,Z26) ->  | AA27: =IF(ISNA(VLOOKUP(X26,$C$8:$Q$53,15,FALSE)), AA26, VLOOKUP(X26,$C$8:$Q$53,15,FALSE)) ->  | AB27: =IF(X27="#N/A","",_xlfn.IFNA(VLOOKUP(X27,$C$8:$Q$46,11,FALSE), $G$47)) ->  | AG27: =IF(ISNA(VLOOKUP(AG26,$C$8:$V$53,2,FALSE)),"#N/A",VLOOKUP(AG26,$C$8:$V$53,2,FALSE)) -> #N/A | AH27: =IF(ISNA(VLOOKUP(AG26,$C$8:$V$53,13,FALSE)),"",VLOOKUP(AG26,$C$8:$V$53,13,FALSE)) ->  | AI27: =IF(AND(ISNUMBER(AI25),ISNUMBER(AH27)),AI25+AH27,AI26) ->  | AJ27: =IF(ISNA(VLOOKUP(AG26,$C$8:$Q$53,15,FALSE)), AJ26, VLOOKUP(AG26,$C$8:$Q$53,15,FALSE)) ->  | AK27: =IF(AG27="#N/A","",_xlfn.IFNA(VLOOKUP(AG27,$C$8:$Q$46,11,FALSE), $G$47)) ->  | AW27: 37 | AX27: 12.5 | BB27: 13.45 | BC27: 13.15 | BD27: =BD26 -> 12.85 | BI27: 37 | BJ27: 12.5 | BN27: =BN26 -> 13.45 | BO27: 13.15 | BP27: 12.85
B28: Pipeid21 | X28: =IF($X27=$G$55,"#N/A",X27) -> #N/A | Y28: 0 | Z28: =IF(X28="#N/A",#N/A,Z27) ->  | AA28: =IF(X28="#N/A","",_xlfn.IFNA(VLOOKUP(X28,$C$8:$Q$53,14,FALSE),AA27)) ->  | AB28: =IF(X28="#N/A","",_xlfn.IFNA(VLOOKUP(X28,$C$8:$Q$46,11,FALSE), "")) ->  | AC28: =_xlfn.IFNA(VLOOKUP($X28,$C$8:$Q$46,4,FALSE), #N/A) ->  | AD28: =_xlfn.IFNA(VLOOKUP($X28,$C$8:$Q$46,6,FALSE), #N/A) ->  | AG28: =IF($AG27=$G$55,"#N/A",AG27) -> #N/A | AH28: 0 | AI28: =IF(AG28="#N/A",#N/A,AI27) ->  | AJ28: =IF(AG28="#N/A","",_xlfn.IFNA(VLOOKUP(AG28,$C$8:$Q$53,14,FALSE),AJ27)) ->  | AK28: =IF(AG28="#N/A","",_xlfn.IFNA(VLOOKUP(AG28,$C$8:$Q$46,11,FALSE), "")) ->  | AL28: =_xlfn.IFNA(VLOOKUP($AG28,$C$8:$Q$46,4,FALSE),#N/A) ->  | AM28: =_xlfn.IFNA(VLOOKUP($AG28,$C$8:$Q$46,6,FALSE), #N/A) ->  | AW28: 39 | AX28: 12.5 | BB28: 13.45 | BC28: 13.15 | BD28: =BD27 -> 12.85 | BI28: 39 | BJ28: 12.5 | BN28: =BN27 -> 13.45 | BO28: 13.15 | BP28: 12.85
B29: Pipeid22 | X29: =IF(ISNA(VLOOKUP(X28,$C$8:$V$53,2,FALSE)),"#N/A",VLOOKUP(X28,$C$8:$V$53,2,FALSE)) -> #N/A | Y29: =IF(ISNA(VLOOKUP(X28,$C$8:$V$53,13,FALSE)),"",VLOOKUP(X28,$C$8:$V$53,13,FALSE)) ->  | Z29: =IF(AND(ISNUMBER(Z27),ISNUMBER(Y29)),Z27+Y29,Z28) ->  | AA29: =IF(ISNA(VLOOKUP(X28,$C$8:$Q$53,15,FALSE)), AA28, VLOOKUP(X28,$C$8:$Q$53,15,FALSE)) ->  | AB29: =IF(X29="#N/A","",_xlfn.IFNA(VLOOKUP(X29,$C$8:$Q$46,11,FALSE), $G$47)) ->  | AG29: =IF(ISNA(VLOOKUP(AG28,$C$8:$V$53,2,FALSE)),"#N/A",VLOOKUP(AG28,$C$8:$V$53,2,FALSE)) -> #N/A | AH29: =IF(ISNA(VLOOKUP(AG28,$C$8:$V$53,13,FALSE)),"",VLOOKUP(AG28,$C$8:$V$53,13,FALSE)) ->  | AI29: =IF(AND(ISNUMBER(AI27),ISNUMBER(AH29)),AI27+AH29,AI28) ->  | AJ29: =IF(ISNA(VLOOKUP(AG28,$C$8:$Q$53,15,FALSE)), AJ28, VLOOKUP(AG28,$C$8:$Q$53,15,FALSE)) ->  | AK29: =IF(AG29="#N/A","",_xlfn.IFNA(VLOOKUP(AG29,$C$8:$Q$46,11,FALSE), $G$47)) ->  | AW29: 41 | AX29: 12.5 | BB29: 13.45 | BC29: 13.15 | BD29: =BD28 -> 12.85 | BI29: 41 | BJ29: 12.5 | BN29: =BN28 -> 13.45 | BO29: 13.15 | BP29: 12.85
B30: Pipeid23
B31: Pipeid24
B32: Pipeid25
B33: Pipeid26
B34: Pipeid27
B35: Pipeid28
B36: Pipeid29
B37: Pipeid30
B38: Pipeid31
B39: Pipeid32
B40: Pipeid33
B41: Pipeid34
B42: Pipeid35
B43: Pipeid36
B44: Pipeid37
B45: Pipeid38
B46: Pipeid39
F47: OutletSL | G47: 14
F48: OutletIL | G48: 13
F49: ponding | G49: 300
F50: DefaultCover | G50: 300
F51: sumflow | G51: 83.4
F52: maxflow | G52: 83.4
F53: endID | G53: 9
F54: endIDpipr | G54: =CONCATENATE("Pipeid",G53) -> Pipeid9
F55: endIDpt | G55: =VLOOKUP(G54,B8:D46,3,FALSE) -> D

Sheet CSV data
